[Event "27th GER-ch Rapid Women 2019"]
[Site "Neumarkt in der Oberpfalz"]
[Date "2019.09.21"]
[Round "1.2"]
[White "Schumann, Rabea"]
[Black "Schmidt, Jessica"]
[Result "0-1"]
[ECO "A12"]
[WhiteElo "1922"]
[BlackElo "2239"]
[Annotator "NA"]
[PlyCount "33"]
[EventDate "2019.09.21"]
[EventType "swiss"]
[EventCountry "GER"]
[SourceTitle "playchess.com"]
[Source "ChessBase"]
[SourceQuality "1"]
[TimeControl "900+10"]

1. c4 {[%emt 0:00:00]} c6 {[%emt 0:00:00]} 2. Nf3 {[%emt 0:00:03]} Nf6 {[%emt 0:00:00]} 3. g3 {[%emt 0:00:05]} d5 {[%emt 0:00:00]} 4. Bg2 {[%emt 0:00:06]} Bf5 {[%emt 0:00:08]} 5. b3 {[%emt 0:00:42]} e6 {[%emt 0:00:14]} 6. O-O {[%emt 0:00:13]} Be7 {[%emt 0:00:05]} 7. Bb2 {[%emt 0:00:19]} Nbd7 {[%emt 0:15:43]} 8. d3 {[%emt 0:00:26]} h6 {[%emt 0:00:00]} 9. Nbd2 {[%emt 0:00:27]} O-O {[%emt 0:00:00]} 10. Re1 {[%emt 0:00:54]} Bh7 {[%emt 0:00:00]} 11. a3 {[%emt 0:05:06]} a5 {[%emt 0:00:00]} 12. Qc2 {[%emt 0:00:43]} Rc8 {[%emt 0:00:00]} 13. Rad1 {[%emt 0:00:09]} b5 {[%emt 0:00:00]} 14. e4 {[%emt 0:02:08]} Nc5 {[%emt 0:00:00]} 15. Ne5 {[%emt 0:02:29]} Qc7 {[%emt 0:00:00]} 16. f3 {[%emt 0:00:41]} Rfd8 {[%emt 0:00:00]} 17. d4 {[%emt 0:00:16]} 0-1

[Event "27th GER-ch Rapid Women 2019"]
[Site "Neumarkt in der Oberpfalz"]
[Date "2019.09.21"]
[Round "2.1"]
[White "Schmidt, Jessica"]
[Black "Stangl, Anita"]
[Result "1-0"]
[ECO "D35"]
[WhiteElo "2239"]
[BlackElo "2011"]
[Annotator "NA"]
[PlyCount "55"]
[EventDate "2019.09.21"]
[EventType "swiss"]
[EventCountry "GER"]
[SourceTitle "playchess.com"]
[Source "ChessBase"]
[SourceQuality "1"]
[TimeControl "900+10"]

1. d4 {[%emt 0:00:00]} e6 {[%emt 0:00:00]} 2. c4 {[%emt 0:00:00]} d5 {[%emt 0:00:00]} 3. Nf3 {[%emt 0:00:00]} c6 {[%emt 0:00:00]} 4. cxd5 {[%emt 0:00:15]} exd5 {[%emt 0:00:00]} 5. Nc3 {[%emt 0:00:06]} Nf6 {[%emt 0:00:17]} 6. Bg5 {[%emt 0:00:11]} Be7 {[%emt 0:00:15]} 7. e3 {[%emt 0:00:07]} O-O {[%emt 0:00:09]} 8. Bd3 {[%emt 0:00:05]} Bg4 {[%emt 0:00:34]} 9. h3 {[%emt 0:00:23]} Bh5 {[%emt 0:00:05]} 10. Qc2 {[%emt 0:00:58]} Bg6 {[%emt 0:00:49]} 11. Bxg6 {[%emt 0:00:53]} hxg6 {[%emt 0:00:03]} 12. O-O {[%emt 0:00:42]} Nbd7 {[%emt 0:00:11]} 13. a3 {[%emt 0:00:17]} a5 {[%emt 0:00:14]} 14. Rfe1 {[%emt 0:00:06]} Re8 {[%emt 0:00:19]} 15. Rad1 {[%emt 0:00:15]} Ne4 {[%emt 0:01:21]} 16. Nxe4 {[%emt 0:00:47]} dxe4 {[%emt 0:00:10]} 17. Bxe7 {[%emt 0:00:03]} Qxe7 {[%emt 0:00:04]} 18. Nd2 {[%emt 0:00:02]} Qh4 {[%emt 0:01:09]} 19. Nc4 {[%emt 0:00:30]} Re6 {[%emt 0:00:25]} 20. Re2 {[%emt 0:01:14]} b5 {[%emt 0:00:31]} 21. Nd2 {[%emt 0:11:36]} g5 {[%emt 0:00:03]} 22. f3 {[%emt 0:00:00]} exf3 {[%emt 0:00:37]} 23. Nxf3 {[%emt 0:00:00]} Qg3 {[%emt 0:00:09]} 24. Qf5 {[%emt 0:00:00]} Rae8 {[%emt 0:00:37]} 25. Rde1 {[%emt 0:00:00]} f6 {[%emt 0:01:45]} 26. e4 {[%emt 0:00:00]} Nf8 {[%emt 0:00:45]} 27. e5 {[%emt 0:00:00]} g6 {[%emt 0:00:21]} 28. Qc2 {[%emt 0:00:00]} 1-0

[Event "27th GER-ch Rapid Women 2019"]
[Site "Neumarkt in der Oberpfalz"]
[Date "2019.09.21"]
[Round "2.2"]
[White "Brandt, Carina"]
[Black "Roessler, Ulrike"]
[Result "0-1"]
[ECO "B08"]
[WhiteElo "2060"]
[BlackElo "2102"]
[Annotator "NA"]
[PlyCount "25"]
[EventDate "2019.09.21"]
[EventType "swiss"]
[EventCountry "GER"]
[SourceTitle "playchess.com"]
[Source "ChessBase"]
[SourceQuality "1"]
[TimeControl "900+10"]

1. e4 {[%emt 0:00:00]} d6 {[%emt 0:00:00]} 2. d4 {[%emt 0:00:00]} Nf6 {[%emt 0:00:00]} 3. Nc3 {[%emt 0:00:00]} g6 {[%emt 0:00:00]} 4. Nf3 {[%emt 0:00:43]} Bg7 {[%emt 0:00:00]} 5. h3 {[%emt 0:00:12]} O-O {[%emt 0:00:00]} 6. Be3 {[%emt 0:00:37]} c6 {[%emt 0:00:08]} 7. Qd2 {[%emt 0:00:42]} b5 {[%emt 0:00:32]} 8. Bd3 {[%emt 0:00:32]} Nbd7 {[%emt 0:00:45]} 9. e5 {[%emt 0:01:08]} b4 {[%emt 0:00:56]} 10. exf6 {[%emt 0:00:28]} bxc3 {[%emt 0:00:02]} 11. Qxc3 {[%emt 0:00:06]} Nxf6 {[%emt 0:00:16]} 12. Qxc6 {[%emt 0:00:42]} Rb8 {[%emt 0:00:01]} 13. O-O-O {[%emt 0:04:06]} 0-1

[Event "27th GER-ch Rapid Women 2019"]
[Site "Neumarkt in der Oberpfalz"]
[Date "2019.09.21"]
[Round "2.3"]
[White "Schilay, Eva"]
[Black "Freter, Anke"]
[Result "0-1"]
[ECO "B07"]
[WhiteElo "1648"]
[BlackElo "1828"]
[Annotator "NA"]
[PlyCount "58"]
[EventDate "2019.09.21"]
[EventType "swiss"]
[EventCountry "GER"]
[SourceTitle "playchess.com"]
[Source "ChessBase"]
[SourceQuality "1"]
[TimeControl "900+10"]

1. Nc3 {[%emt 0:00:00]} Nf6 {[%emt 0:00:18]} 2. e4 {[%emt 0:00:00]} d6 {[%emt 0:00:39]} 3. d4 {[%emt 0:00:12]} g6 {[%emt 0:00:24]} 4. Bc4 {[%emt 0:02:37]} Bg7 {[%emt 0:00:27]} 5. Be3 {[%emt 0:00:05]} Ng4 {[%emt 0:01:41]} 6. Qf3 {[%emt 0:03:32]} O-O {[%emt 0:00:32]} 7. h4 {[%emt 0:01:27]} h5 {[%emt 0:00:40]} 8. Nh3 {[%emt 0:00:25]} Nxe3 {[%emt 0:00:25]} 9. fxe3 {[%emt 0:00:02]} Bg4 {[%emt 0:00:25]} 10. Qf2 {[%emt 0:01:14]} e6 {[%emt 0:00:42]} 11. Ng5 {[%emt 0:00:57]} Qf6 {[%emt 0:01:27]} 12. O-O {[%emt 0:00:40]} Qxf2+ {[%emt 0:00:16]} 13. Rxf2 {[%emt 0:00:01]} Nd7 {[%emt 0:01:33]} 14. Raf1 {[%emt 0:00:13]} Nb6 {[%emt 0:01:28]} 15. Bb3 {[%emt 0:00:01]} Bh6 {[%emt 0:00:09]} 16. Rxf7 {[%emt 0:02:35]} Rxf7 {[%emt 0:00:15]} 17. Nxf7 {[%emt 0:00:18]} Bxe3+ {[%emt 0:00:13]} 18. Kh1 {[%emt 0:00:05]} Rf8 {[%emt 0:00:27]} 19. Re1 {[%emt 0:00:43]} Bf2 {[%emt 0:00:31]} 20. Nh6+ {[%emt 0:00:58]} Kg7 {[%emt 0:00:26]} 21. Rf1 {[%emt 0:00:16]} Kxh6 {[%emt 0:00:34]} 22. e5 {[%emt 0:01:01]} d5 {[%emt 0:00:27]} 23. g3 {[%emt 0:00:31]} Bf3+ {[%emt 0:01:03]} 24. Kh2 {[%emt 0:00:02]} Bxd4 {[%emt 0:00:11]} 25. Ne2 {[%emt 0:00:21]} c5 {[%emt 0:00:23]} 26. c3 {[%emt 0:00:15]} Be3 {[%emt 0:00:46]} 27. Ng1 {[%emt 0:00:42]} Bxg1+ {[%emt 0:00:06]} 28. Kxg1 {[%emt 0:00:01]} Rf5 {[%emt 0:00:05]} 29. Bc2 {[%emt 0:00:06]} Be4 {[%emt 0:00:06]} 0-1

[Event "27th GER-ch Rapid Women 2019"]
[Site "Neumarkt in der Oberpfalz"]
[Date "2019.09.21"]
[Round "3.1"]
[White "Muetsch, Annmarie"]
[Black "Schmidt, Jessica"]
[Result "0-1"]
[ECO "B01"]
[WhiteElo "2250"]
[BlackElo "2239"]
[Annotator "NA"]
[PlyCount "25"]
[EventDate "2019.09.21"]
[EventType "swiss"]
[EventCountry "GER"]
[SourceTitle "playchess.com"]
[Source "ChessBase"]
[SourceQuality "1"]
[TimeControl "900+10"]

1. e4 {[%emt 0:00:00]} d5 {[%emt 0:15:10]} 2. exd5 {[%emt 0:00:00]} Qxd5 {[%emt 0:00:00]} 3. Nc3 {[%emt 0:00:00]} Qa5 {[%emt 0:00:00]} 4. Bc4 {[%emt 0:00:03]} Nf6 {[%emt 0:00:14]} 5. d3 {[%emt 0:00:08]} e6 {[%emt 0:00:21]} 6. Nf3 {[%emt 0:00:45]} c6 {[%emt 0:15:25]} 7. O-O {[%emt 0:00:38]} Be7 {[%emt 0:00:02]} 8. Qe2 {[%emt 0:00:46]} O-O {[%emt 0:00:22]} 9. h3 {[%emt 0:00:49]} b5 {[%emt 0:15:12]} 10. Bb3 {[%emt 0:00:07]} Qb6 {[%emt 0:00:39]} 11. a4 {[%emt 0:01:10]} a6 {[%emt 0:00:54]} 12. Be3 {[%emt 0:02:20]} Qb7 {[%emt 0:13:49]} 13. Ne4 {[%emt 0:10:24]} 0-1

[Event "27th GER-ch Rapid Women 2019"]
[Site "Neumarkt in der Oberpfalz"]
[Date "2019.09.21"]
[Round "3.3"]
[White "Schumann, Rabea"]
[Black "Schilay, Eva"]
[Result "1/2-1/2"]
[ECO "A25"]
[WhiteElo "1922"]
[BlackElo "1648"]
[Annotator "NA"]
[PlyCount "94"]
[EventDate "2019.09.21"]
[EventType "swiss"]
[EventCountry "GER"]
[SourceTitle "playchess.com"]
[Source "ChessBase"]
[SourceQuality "1"]
[TimeControl "900+10"]

1. c4 {[%emt 0:00:00]} e5 {[%emt 0:00:00]} 2. g3 {[%emt 0:00:00]} Nc6 {[%emt 0:00:03]} 3. Bg2 {[%emt 0:00:05]} g6 {[%emt 0:00:02]} 4. Nc3 {[%emt 0:00:07]} Bg7 {[%emt 0:00:03]} 5. e3 {[%emt 0:00:38]} d6 {[%emt 0:00:03]} 6. Nge2 {[%emt 0:00:06]} Be6 {[%emt 0:00:04]} 7. d3 {[%emt 0:00:14]} f5 {[%emt 0:01:03]} 8. O-O {[%emt 0:00:21]} Nf6 {[%emt 0:00:12]} 9. Rb1 {[%emt 0:00:51]} O-O {[%emt 0:00:05]} 10. b4 {[%emt 0:00:27]} Qd7 {[%emt 0:00:42]} 11. b5 {[%emt 0:00:50]} Ne7 {[%emt 0:00:20]} 12. Bxb7 {[%emt 0:01:11]} Rab8 {[%emt 0:00:02]} 13. Bg2 {[%emt 0:00:08]} d5 {[%emt 0:01:07]} 14. cxd5 {[%emt 0:02:55]} Nexd5 {[%emt 0:00:07]} 15. Bb2 {[%emt 0:01:17]} Qf7 {[%emt 0:02:40]} 16. a4 {[%emt 0:01:35]} Ne8 {[%emt 0:01:08]} 17. Nxd5 {[%emt 0:01:23]} Bxd5 {[%emt 0:00:03]} 18. Ba3 {[%emt 0:00:36]} Bxg2 {[%emt 0:00:26]} 19. Kxg2 {[%emt 0:00:02]} Nd6 {[%emt 0:00:02]} 20. Qb3 {[%emt 0:00:24]} Rfd8 {[%emt 0:00:31]} 21. Rfc1 {[%emt 0:00:32]} Rd7 {[%emt 0:01:30]} 22. Bxd6 {[%emt 0:00:57]} cxd6 {[%emt 0:00:27]} 23. Qxf7+ {[%emt 0:00:09]} Kxf7 {[%emt 0:00:02]} 24. Rc6 {[%emt 0:00:09]} Rb6 {[%emt 0:00:39]} 25. Rbc1 {[%emt 0:00:43]} Rxc6 {[%emt 0:01:44]} 26. Rxc6 {[%emt 0:00:05]} d5 {[%emt 0:00:02]} 27. a5 {[%emt 0:00:50]} Ke8 {[%emt 0:01:38]} 28. Nc3 {[%emt 0:00:53]} d4 {[%emt 0:00:14]} 29. Rc8+ {[%emt 0:01:02]} Ke7 {[%emt 0:00:06]} 30. exd4 {[%emt 0:00:05]} Rxd4 {[%emt 0:00:52]} 31. Rc7+ {[%emt 0:00:09]} Rd7 {[%emt 0:00:01]} 32. Rxd7+ {[%emt 0:00:07]} Kxd7 {[%emt 0:00:01]} 33. Na4 {[%emt 0:00:20]} Kc7 {[%emt 0:00:29]} 34. Kf3 {[%emt 0:00:16]} Bf8 {[%emt 0:00:01]} 35. Ke3 {[%emt 0:00:11]} Bb4 {[%emt 0:00:02]} 36. b6+ {[%emt 0:00:41]} axb6 {[%emt 0:00:04]} 37. axb6+ {[%emt 0:00:01]} Kc6 {[%emt 0:01:05]} 38. d4 {[%emt 0:00:07]} Bd6 {[%emt 0:00:46]} 39. dxe5 {[%emt 0:00:19]} Bxe5 {[%emt 0:00:02]} 40. f4 {[%emt 0:00:18]} Bb8 {[%emt 0:00:02]} 41. Kd4 {[%emt 0:00:11]} Kb5 {[%emt 0:00:05]} 42. Nc3+ {[%emt 0:00:02]} Kxb6 {[%emt 0:00:02]} 43. Nd5+ {[%emt 0:00:28]} Kc6 {[%emt 0:00:17]} 44. Nf6 {[%emt 0:00:03]} Ba7+ {[%emt 0:00:19]} 45. Kc4 {[%emt 0:00:01]} Bg1 {[%emt 0:00:05]} 46. h3 {[%emt 0:00:10]} Bh2 {[%emt 0:03:22]} 47. g4 {[%emt 0:00:51]} h6 {[%emt 0:01:35]} 1/2-1/2

[Event "27th GER-ch Rapid Women 2019"]
[Site "Neumarkt in der Oberpfalz"]
[Date "2019.09.21"]
[Round "4.3"]
[White "Germann, Heike"]
[Black "Muetsch, Annmarie"]
[Result "0-1"]
[ECO "E94"]
[WhiteElo "2079"]
[BlackElo "2250"]
[Annotator "NA"]
[PlyCount "94"]
[EventDate "2019.09.21"]
[EventType "swiss"]
[EventCountry "GER"]
[SourceTitle "playchess.com"]
[Source "ChessBase"]
[SourceQuality "1"]
[TimeControl "900+10"]

1. d4 {[%emt 0:00:00]} Nf6 {[%emt 0:00:00]} 2. c4 {[%emt 0:00:00]} g6 {[%emt 0:00:00]} 3. Nc3 {[%emt 0:00:00]} Bg7 {[%emt 0:00:00]} 4. e4 {[%emt 0:00:00]} d6 {[%emt 0:00:00]} 5. Nf3 {[%emt 0:00:00]} O-O {[%emt 0:00:00]} 6. Be2 {[%emt 0:00:00]} Na6 {[%emt 0:00:02]} 7. O-O {[%emt 0:00:04]} e5 {[%emt 0:00:02]} 8. d5 {[%emt 0:00:02]} Nc5 {[%emt 0:00:03]} 9. Qc2 {[%emt 0:00:05]} a5 {[%emt 0:00:01]} 10. Ne1 {[%emt 0:00:27]} Ne8 {[%emt 0:00:37]} 11. Nd3 {[%emt 0:00:31]} b6 {[%emt 0:00:46]} 12. Bd2 {[%emt 0:01:41]} f5 {[%emt 0:00:08]} 13. f3 {[%emt 0:00:03]} Nf6 {[%emt 0:00:07]} 14. Nxc5 {[%emt 0:01:38]} bxc5 {[%emt 0:00:06]} 15. a3 {[%emt 0:00:06]} Bd7 {[%emt 0:00:33]} 16. b3 {[%emt 0:00:27]} f4 {[%emt 0:01:30]} 17. Rfb1 {[%emt 0:00:03]} g5 {[%emt 0:00:06]} 18. Ra2 {[%emt 0:00:05]} g4 {[%emt 0:00:20]} 19. b4 {[%emt 0:00:29]} axb4 {[%emt 0:01:36]} 20. axb4 {[%emt 0:00:03]} cxb4 {[%emt 0:00:02]} 21. Rxb4 {[%emt 0:00:09]} Qe8 {[%emt 0:00:30]} 22. Be1 {[%emt 0:02:06]} Qg6 {[%emt 0:00:40]} 23. Rb7 {[%emt 0:01:23]} gxf3 {[%emt 0:01:30]} 24. Bxf3 {[%emt 0:00:03]} Bg4 {[%emt 0:01:45]} 25. Kh1 {[%emt 0:00:55]} Qh5 {[%emt 0:02:10]} 26. Qe2 {[%emt 0:01:54]} Rxa2 {[%emt 0:00:03]} 27. Nxa2 {[%emt 0:00:02]} Ra8 {[%emt 0:00:20]} 28. Nc3 {[%emt 0:00:56]} Ra1 {[%emt 0:02:22]} 29. Rb1 {[%emt 0:00:06]} Ra3 {[%emt 0:01:06]} 30. Kg1 {[%emt 0:01:52]} Bf8 {[%emt 0:00:23]} 31. Bxg4 {[%emt 0:00:23]} Qxg4 {[%emt 0:00:20]} 32. Qf2 {[%emt 0:00:36]} Qh5 {[%emt 0:02:46]} 33. h3 {[%emt 0:00:18]} Qg6 {[%emt 0:00:02]} 34. Qe2 {[%emt 0:00:11]} Nh5 {[%emt 0:00:12]} 35. Rc1 {[%emt 0:01:01]} Kf7 {[%emt 0:00:13]} 36. Qb2 {[%emt 0:00:38]} f3 {[%emt 0:00:25]} 37. Qf2 {[%emt 0:00:26]} Qxg2+ {[%emt 0:00:05]} 38. Qxg2 {[%emt 0:00:02]} fxg2 {[%emt 0:00:02]} 39. Kxg2 {[%emt 0:00:02]} Nf4+ {[%emt 0:00:03]} 40. Kh2 {[%emt 0:02:53]} Nd3 {[%emt 0:00:05]} 41. Rc2 {[%emt 0:02:51]} Nxe1 {[%emt 0:00:49]} 42. Rf2+ {[%emt 0:00:01]} Kg8 {[%emt 0:00:23]} 43. Nb5 {[%emt 0:00:02]} Ra4 {[%emt 0:00:13]} 44. Nxc7 {[%emt 0:00:05]} Rxc4 {[%emt 0:00:02]} 45. Ne6 {[%emt 0:00:06]} Rc2 {[%emt 0:00:09]} 46. Kg3 {[%emt 0:00:11]} Rxf2 {[%emt 0:00:07]} 47. Kxf2 {[%emt 0:00:01]} Nc2 {[%emt 0:00:50]} 0-1

[Event "27th GER-ch Rapid Women 2019"]
[Site "Neumarkt in der Oberpfalz"]
[Date "2019.09.22"]
[Round "6.2"]
[White "Siegl, Melina"]
[Black "Anita Bharathi A S E"]
[Result "0-1"]
[ECO "C00"]
[WhiteElo "2018"]
[BlackElo "1263"]
[Annotator "NA RC"]
[PlyCount "39"]
[EventDate "2019.09.21"]
[EventType "swiss"]
[EventCountry "GER"]
[SourceTitle "playchess.com"]
[Source "ChessBase"]
[SourceQuality "1"]
[TimeControl "900+10"]

1. e4 {[%emt 0:00:00]} e6 {[%emt 0:00:00]} 2. d3 {[%emt 0:00:00]} d5 {[%emt 0:00:00]} 3. Nd2 {[%emt 0:00:00]} b6 {[%emt 0:00:00]} 4. g3 {[%emt 0:00:00]} Bb7 {[%emt 0:00:00]} 5. Bg2 {[%emt 0:00:00]} Nf6 {[%emt 0:00:03]} 6. Qe2 {[%emt 0:00:01]} d4 {[%emt 0:01:16]} 7. Ngf3 {[%emt 0:02:49]} c5 {[%emt 0:00:13]} 8. e5 {[%emt 0:00:20]} Nfd7 {[%emt 0:00:02]} 9. Ne4 {[%emt 0:00:17]} Nc6 {[%emt 0:00:08]} 10. Bf4 {[%emt 0:02:26]} h6 {[%emt 0:00:25]} 11. h4 {[%emt 0:00:15]} Nb4 {[%emt 0:00:23]} 12. a3 {[%emt 0:03:02]} Nd5 {[%emt 0:00:01]} 13. Bd2 {[%emt 0:01:46]} Qc7 {[%emt 0:00:02]} 14. c4 {[%emt 0:00:08]} dxc3 {[%emt 0:00:18]} 15. Nxc3 {[%emt 0:00:55]} Be7 {[%emt 0:02:16]} 16. O-O {[%emt 0:00:04]} Nxc3 {[%emt 0:00:41]} 17. bxc3 {[%emt 0:00:07]} O-O-O {[%emt 0:00:13]} 18. c4 {[%emt 0:01:34]} Rdg8 {[%emt 0:00:13]} 19. d4 {[%emt 0:00:18]} cxd4 {[%emt 0:00:15]} 20. Nxd4 {[%emt 0:01:24]} 0-1

[Event "27th GER-ch Rapid Women 2019"]
[Site "Neumarkt in der Oberpfalz"]
[Date "2019.09.22"]
[Round "6.3"]
[White "Weimert, Miriam"]
[Black "Schilay, Eva"]
[Result "1-0"]
[ECO "A05"]
[WhiteElo "1862"]
[BlackElo "1648"]
[Annotator "NA RC"]
[PlyCount "79"]
[EventDate "2019.09.21"]
[EventType "swiss"]
[EventCountry "GER"]
[SourceTitle "playchess.com"]
[Source "ChessBase"]
[SourceQuality "1"]
[TimeControl "900+10"]

1. Nf3 {[%emt 0:00:00]} Nf6 {[%emt 0:00:00]} 2. b3 {[%emt 0:00:04]} g6 {[%emt 0:00:30]} 3. Bb2 {[%emt 0:00:35]} Bg7 {[%emt 0:00:02]} 4. c4 {[%emt 0:00:07]} d5 {[%emt 0:01:43]} 5. cxd5 {[%emt 0:00:23]} Qxd5 {[%emt 0:00:10]} 6. Nc3 {[%emt 0:00:18]} Qd8 {[%emt 0:00:23]} 7. e3 {[%emt 0:00:05]} b6 {[%emt 0:00:12]} 8. Be2 {[%emt 0:00:52]} O-O {[%emt 0:00:47]} 9. O-O {[%emt 0:00:03]} c5 {[%emt 0:00:47]} 10. d4 {[%emt 0:00:39]} cxd4 {[%emt 0:00:06]} 11. Nxd4 {[%emt 0:00:02]} Bb7 {[%emt 0:00:11]} 12. Bf3 {[%emt 0:00:28]} Bxf3 {[%emt 0:01:04]} 13. Qxf3 {[%emt 0:00:02]} Nbd7 {[%emt 0:00:04]} 14. Nc6 {[%emt 0:00:27]} Qe8 {[%emt 0:01:00]} 15. Nb5 {[%emt 0:00:37]} Nc5 {[%emt 0:01:03]} 16. Nbxa7 {[%emt 0:01:01]} Qd7 {[%emt 0:01:01]} 17. Rfd1 {[%emt 0:00:35]} Qb7 {[%emt 0:01:06]} 18. Nb5 {[%emt 0:01:57]} Rfc8 {[%emt 0:02:10]} 19. Ne5 {[%emt 0:00:29]} Qa6 {[%emt 0:00:39]} 20. Nd4 {[%emt 0:00:43]} Rc7 {[%emt 0:00:49]} 21. Ne2 {[%emt 0:02:14]} Rac8 {[%emt 0:00:34]} 22. Nf4 {[%emt 0:01:19]} Nfe4 {[%emt 0:01:01]} 23. Nd5 {[%emt 0:00:47]} Bxe5 {[%emt 0:00:02]} 24. Bxe5 {[%emt 0:00:06]} Rd7 {[%emt 0:00:24]} 25. b4 {[%emt 0:00:14]} Ng5 {[%emt 0:00:32]} 26. Qg4 {[%emt 0:00:29]} Nce6 {[%emt 0:00:07]} 27. h4 {[%emt 0:01:24]} Rcd8 {[%emt 0:00:05]} 28. Nxe7+ {[%emt 0:00:26]} Rxe7 {[%emt 0:01:19]} 29. hxg5 {[%emt 0:00:02]} Rc8 {[%emt 0:00:34]} 30. Rac1 {[%emt 0:01:39]} Ra8 {[%emt 0:00:29]} 31. Rc2 {[%emt 0:00:25]} Qb5 {[%emt 0:00:08]} 32. Bf6 {[%emt 0:00:13]} Rea7 {[%emt 0:00:02]} 33. Rdc1 {[%emt 0:00:15]} Qd7 {[%emt 0:00:21]} 34. Qc4 {[%emt 0:00:38]} Rb7 {[%emt 0:00:47]} 35. Qe2 {[%emt 0:00:25]} Rba7 {[%emt 0:00:08]} 36. Rd1 {[%emt 0:00:14]} Qb7 {[%emt 0:00:10]} 37. Rcd2 {[%emt 0:00:17]} Qc7 {[%emt 0:00:05]} 38. Rd7 {[%emt 0:00:11]} Qc6 {[%emt 0:00:31]} 39. R1d6 {[%emt 0:00:23]} Qb5 {[%emt 0:00:07]} 40. Qxb5 {[%emt 0:00:02]} 1-0

[Event "27th GER-ch Rapid Women 2019"]
[Site "Neumarkt in der Oberpfalz"]
[Date "2019.09.22"]
[Round "7.3"]
[White "Schilay, Eva"]
[Black "Mader, Lena"]
[Result "0-1"]
[ECO "B13"]
[WhiteElo "1648"]
[BlackElo "1808"]
[Annotator "NA RC"]
[PlyCount "46"]
[EventDate "2019.09.21"]
[EventType "swiss"]
[EventCountry "GER"]
[SourceTitle "playchess.com"]
[Source "ChessBase"]
[SourceQuality "1"]
[TimeControl "900+10"]

1. e4 {[%emt 0:15:10]} c6 {[%emt 0:15:10]} 2. d4 {[%emt 0:00:00]} d5 {[%emt 0:00:00]} 3. exd5 {[%emt 0:00:00]} cxd5 {[%emt 0:00:00]} 4. Be3 {[%emt 0:00:00]} Nc6 {[%emt 0:00:00]} 5. c3 {[%emt 0:00:00]} Nf6 {[%emt 0:00:00]} 6. h3 {[%emt 0:00:00]} Qb6 {[%emt 0:00:00]} 7. Qc2 {[%emt 0:00:00]} g6 {[%emt 0:00:00]} 8. Bd3 {[%emt 0:00:00]} Bg7 {[%emt 0:00:00]} 9. Nf3 {[%emt 0:00:00]} O-O {[%emt 0:00:00]} 10. O-O {[%emt 0:00:00]} Qc7 {[%emt 0:00:00]} 11. Nbd2 {[%emt 0:00:00]} Nh5 {[%emt 0:00:00]} 12. Rae1 {[%emt 0:00:00]} Nf4 {[%emt 0:00:00]} 13. Bxf4 {[%emt 0:00:00]} Qxf4 {[%emt 0:00:00]} 14. Re2 {[%emt 0:00:00]} a6 {[%emt 0:00:00]} 15. Rfe1 {[%emt 0:00:00]} b5 {[%emt 0:00:00]} 16. Nb3 {[%emt 0:00:00]} Bxh3 {[%emt 0:00:00]} 17. Ne5 {[%emt 0:00:00]} Nxe5 {[%emt 0:00:00]} 18. dxe5 {[%emt 0:00:00]} Be6 {[%emt 0:00:00]} 19. Nd4 {[%emt 0:00:00]} Rac8 {[%emt 0:00:00]} 20. Re3 {[%emt 0:00:00]} h5 {[%emt 0:00:09]} 21. Rg3 {[%emt 0:00:00]} Bg4 {[%emt 0:00:23]} 22. e6 {[%emt 0:00:00]} Bxd4 {[%emt 0:00:02]} 23. exf7+ {[%emt 0:00:00]} Rxf7 {[%emt 0:00:01]} 0-1

[Event "27th GER-ch Rapid Women 2019"]
[Site "Neumarkt in der Oberpfalz"]
[Date "2019.09.22"]
[Round "8.1"]
[White "Siegl, Melina"]
[Black "Muetsch, Annmarie"]
[Result "0-1"]
[ECO "B40"]
[WhiteElo "2018"]
[BlackElo "2250"]
[Annotator "NA"]
[PlyCount "31"]
[EventDate "2019.09.21"]
[EventType "swiss"]
[EventCountry "GER"]
[SourceTitle "playchess.com"]
[Source "ChessBase"]
[SourceQuality "1"]
[TimeControl "900+10"]

1. e4 {[%emt 0:00:00]} c5 {[%emt 0:00:00]} 2. Nf3 {[%emt 0:00:00]} e6 {[%emt 0:00:03]} 3. d3 {[%emt 0:00:00]} Nc6 {[%emt 0:00:09]} 4. g3 {[%emt 0:00:00]} Nf6 {[%emt 0:00:06]} 5. Nbd2 {[%emt 0:00:03]} d6 {[%emt 0:00:53]} 6. Bg2 {[%emt 0:00:02]} g6 {[%emt 0:00:05]} 7. O-O {[%emt 0:00:07]} Bg7 {[%emt 0:00:09]} 8. c3 {[%emt 0:01:05]} O-O {[%emt 0:00:21]} 9. Qe2 {[%emt 0:02:49]} e5 {[%emt 0:00:46]} 10. h3 {[%emt 0:00:12]} Rb8 {[%emt 0:00:39]} 11. Nh4 {[%emt 0:01:15]} b5 $15 {[%emt 0:01:41]} 12. Kh2 {[%emt 0:01:25]} b4 {[%emt 0:00:52]} 13. Nc4 {[%emt 0:01:42]} bxc3 {[%emt 0:00:55]} 14. bxc3 {[%emt 0:00:01]} Na5 {[%emt 0:01:05]} 15. Ne3 {[%emt 0:01:29]} Ba6 {[%emt 0:02:25]} 16. Nc2 {[%emt 0:01:22]} 0-1

[Event "27th GER-ch Rapid Women 2019"]
[Site "Neumarkt in der Oberpfalz"]
[Date "2019.09.22"]
[Round "8.2"]
[White "Roessler, Ulrike"]
[Black "Anita Bharathi A S E"]
[Result "1-0"]
[ECO "C14"]
[WhiteElo "2102"]
[BlackElo "1263"]
[Annotator "NA"]
[PlyCount "21"]
[EventDate "2019.09.21"]
[EventType "swiss"]
[EventCountry "GER"]
[SourceTitle "playchess.com"]
[Source "ChessBase"]
[SourceQuality "1"]
[TimeControl "900+10"]

1. e4 e6 2. d4 {[%emt 0:00:00]} d5 {[%emt 0:00:00]} 3. Nc3 {[%emt 0:00:00]} Nf6 {[%emt 0:00:00]} 4. Bg5 {[%emt 0:00:00]} Be7 {[%emt 0:00:00]} 5. e5 Nfd7 {[%emt 0:15:50]} 6. Bxe7 {[%emt 0:00:01]} Qxe7 {[%emt 0:00:00]} 7. f4 {[%emt 0:00:07]} O-O {[%emt 0:00:00]} 8. Nf3 {[%emt 0:00:04]} c5 {[%emt 0:00:00]} 9. Qd2 {[%emt 0:00:18]} Nc6 {[%emt 0:00:00]} 10. O-O-O {[%emt 0:00:18]} f6 {[%emt 0:00:00]} 11. dxc5 {[%emt 0:03:31]} 1-0

[Event "27th GER-ch Rapid Women 2019"]
[Site "Neumarkt in der Oberpfalz"]
[Date "2019.09.22"]
[Round "8.3"]
[White "Noll, Sonja"]
[Black "Schilay, Eva"]
[Result "1-0"]
[ECO "B07"]
[WhiteElo "1783"]
[BlackElo "1648"]
[Annotator "NA RC"]
[PlyCount "31"]
[EventDate "2019.09.21"]
[EventType "swiss"]
[EventCountry "GER"]
[SourceTitle "playchess.com"]
[Source "ChessBase"]
[SourceQuality "1"]
[TimeControl "900+10"]

1. e4 {[%emt 0:00:00]} d6 {[%emt 0:00:00]} 2. d4 {[%emt 0:00:01]} Nf6 {[%emt 0:00:00]} 3. Nc3 {[%emt 0:00:10]} e5 {[%emt 0:00:00]} 4. dxe5 {[%emt 0:00:13]} dxe5 {[%emt 0:00:00]} 5. Qxd8+ {[%emt 0:00:03]} Kxd8 {[%emt 0:00:00]} 6. Nf3 {[%emt 0:00:06]} Bd6 {[%emt 0:00:04]} 7. Bg5 {[%emt 0:00:07]} Be6 {[%emt 0:00:02]} 8. O-O-O {[%emt 0:00:17]} Nbd7 {[%emt 0:00:02]} 9. h3 {[%emt 0:00:46]} a6 {[%emt 0:00:03]} 10. a3 {[%emt 0:00:09]} Ke7 {[%emt 0:00:24]} 11. Be2 {[%emt 0:00:30]} b5 {[%emt 0:00:13]} 12. Nd5+ {[%emt 0:00:29]} Bxd5 {[%emt 0:00:10]} 13. Rxd5 {[%emt 0:00:49]} h6 {[%emt 0:00:36]} 14. Bxf6+ {[%emt 0:00:08]} gxf6 {[%emt 0:00:10]} 15. Nh4 {[%emt 0:00:13]} c6 {[%emt 0:00:36]} 16. Nf5+ {[%emt 0:00:10]} 1-0